{"text_format":"1","workbook":"xlsx","n_sheets":13,"sheets":["MENU","UTILITA","INFO","MENU TEST","ANAGRAFICA","TEST 1","TEST 2","TEST 3","ART 3","ART 2086","DATI GRAFICO","REPORT","CALCOLI"],"not_rendered":{"charts":4,"images":8,"macros":1,"external_links":0,"defined_names":2,"comments":0,"pivot_tables":0},"unopened":[],"bounds":{"document_bytes":16777216,"sheet_cells":100000,"rows_first":2000,"rows_last":500,"rows_between":2000,"halvings":0,"cell_chars":16384,"cell_head_chars":4096},"cells_cut":0,"cells_raw":0,"read":"whole","date_system":"1900"}

{"sheet":"MENU","index":0,"n_rows":17,"n_cols":8,"rows_kept":17,"cut":false,"hidden":false,"merged":[[16,1,16,2],[10,1,12,2],[10,4,12,5],[1,1,2,5],[1,6,5,8],[3,1,5,5],[6,6,7,8],[10,7,10,8],[12,7,12,8]]}
[]
[null,"TEST PER LA VERIFICA DEGLI ADEGUATI ASSETTI"]
[]
[null,"Autodiagnosi per la verifica dell'adeguatezza delle misure e degli assetti in funzione della rilevazione tempestiva della crisi d'impresa (D.Lgs. 14/2019)"]
[]
[]
[null,"Versione 1.0 del 30/05/2023",null,null,null,null,"Informazioni & Credits"]
[null,"Autore: Nicola Napolitano"]
[]
[]
[null,"ANAGRAFICA AZIENDA",null,null,"TEST DI AUTODIAGNOSI",null,null,"REPORT"]
[]
[null,null,null,null,null,null,null,"UTILITA'"]
[]
[]
[]
[null,"   Ultimi arrivi"]

{"sheet":"UTILITA","index":1,"n_rows":14,"n_cols":4,"rows_kept":14,"cut":false,"hidden":false,"merged":[]}
[]
[]
[null,"UTILITA'",null,"Indietro"]
[null,"Link ipertestuali di collegamento a fonti di utilità"]
[]
[null,"FONTI NORMATIVE:"]
[null,"Per la consultazione delle fonti normative utilizzate per i quesiti proposti nei test:"]
[">","Art. 3 e 25-novies del D.Lgs. 14/2019 Codice della Crisi d'Impresa e dell'Insolvenza"]
[">","Art. 2086 codice civile"]
[]
[]
[null,"STRUMENTI OPERATIVI"]
[null,"Ebook gratuito \"GUIDA AGLI STRUMENTI OPERATIVI PER IL SUPERAMENTO DELLA CRISI\":"]
[">","https://www.fiscoetasse.com/BusinessCenter/scheda/47351-guida-agli-strumenti-operativi-per-il-superamento-crisi.html"]

{"sheet":"INFO","index":2,"n_rows":65,"n_cols":9,"rows_kept":65,"cut":false,"hidden":false,"merged":[[2,1,2,7],[47,1,47,11],[48,1,48,11],[52,1,53,11],[50,1,50,11],[51,1,51,11],[6,1,15,7],[18,1,21,4],[42,1,42,11]]}
[]
[]
[null,"TEST PER LA VERIFICA DEGLI ADEGUATI ASSETTI",null,null,null,null,null,null,"Indietro"]
[null,"Versione 1.0 del 30/05/2023"]
[null,"Autore: Nicola Napolitano"]
[]
[null,"Il tool ha lo scopo di verificare l'esistenza e l'adeguatezza degli assetti organizzativi, amministrativi e contabili e le misure idonee per rilevare tempestivamente lo stato di crisi, come stabilito dall'art. 2086 comma 2 del codice civile e dal D.Lgs. 14/2019 (Codice della crisi d'impresa e dell'insolvenza).                                                                                                                 La verifica viene effettuata mediante una batteria di 3 test di autodiagnosi che rispecchiano esattamente quanto richiesto dall'art. 3 co. 3 del D.Lgs. 14/2019 alle lettere a) b) c).                                                    Parte  dei quesiti contenuti nei TEST sono estratti dalle seguenti fonti normative:                                                                          "]
[]
[]
[]
[]
[]
[]
[]
[]
[]
["1)","Principio di revisione ISA 570"]
["2)","Segnali di crisi art. 3 co. 4 D.Lgs. 14/2019"]
["3)","Lista di controllo particolareggiata e Test pratico (documento allegato al decreto dirigenziale direttore generale degli affari interni 28/09/2021)"]
[]
[]
[]
[]
[null,"I TEST prevedono 3 tipologie di risposte ai quesiti proposti:"]
[null,"> SI"]
[null,"> NO "]
[null,"> Quesito escluso"]
[]
[null,"E' possibile escludere dal calcolo alcuni quesiti che risultano non "]
[null,"pertinenti con la tipologia d'impresa o per adattare il test alla natura e "]
[null,"dimensione dell'impresa."]
[null,"In caso di risposta negativa, il sistema segnala le azioni da intraprendere"]
[null,"in conformità anche delle indicazioni delle fonti normative utilizzate."]
[null,"Per ogni quesito inoltre è possibile fare delle annotazioni."]
[]
[null,"Il tool genera in automatico un REPORT di immediata sintesi che "]
[null,"propone in percentuale l'adeguatezza delle misure e degli assetti."]
[null,"Il REPORT può essere completato con note e osservazioni in un foglio"]
[null,"di Word."]
[]
[]
[]
[null,"Credits"]
[]
[null,"Per assistenza,  chiarimenti, informazioni specifiche o suggerimenti migliorativi, potete scrivere "]
[null,"direttamente all'autore:"]
[]
[null,"Prof. Nicola Napolitano - Dottore commercialista"]
[null,"n.napolitano4@gmail.com"]
[]
[null,"Scarica gratuitamente la "]
[null,"GUIDA AGLI STRUMENTI OPERATIVI PER LA PREVENZIONE DELLA CRISI"]
[null,"https://www.fiscoetasse.com/BusinessCenter/scheda/46348-guida-agli-strumenti-operativi-per-il-superamento-crisi.html"]
[]
[]
[]
[]
[null,"Disclaimer:"]
[null,"L'utilizzatore di questo foglio di calcolo è tenuto a controllare l'esattezza e la completezza dei risultati. "]
[null,"L'autore e l'editore non si assumono alcuna responsabilità per danni diretti o indiretti subìti dal cliente o da terzi"]
[null," in dipendenza dall'uso del presente foglio."]
[]
[]
[]
[null,"Vai inizio pagina"]

{"sheet":"MENU TEST","index":3,"n_rows":27,"n_cols":4,"rows_kept":27,"cut":false,"hidden":false,"merged":[[20,2,22,2],[2,1,3,2]]}
[]
[null,{"$f":"+ANAGRAFICA!D6","v":0},null,"Indietro"]
[null,"TEST DI AUTODIAGNOSI PER VERIFICARE L'ADEGUATEZZA DELLE MISURE E DEGLI ASSETTI IN FUNZIONE DELLA RILEVAZIONE TEMPESTIVA DELLA CRISI D'IMPRESA (D.Lgs. 14/2019)"]
[]
[]
[null,null,"Fonti normative"]
[null,"TEST 1 (cliccare qui per accedere al test)","Art. 3, comma 3, lett. a), D.Lgs. 14/2019"]
[null,"Questionario per misurare l'adeguatezza degli strumenti atti a rilevare "]
[null,"eventuali squilibri di carattere patrimoniale o economico-finanziario "]
[null,"rapportati alle specifiche caratteristiche dell'impresa e dell'attività "]
[null,"imprenditoriale svolta."]
[]
[null,null,"Fonti normative"]
[null,"TEST 2 (cliccare qui per accedere al test)","Art. 3, comma 3, lett. b), D.Lgs. 14/2019"]
[null,"Questionario per verificare l'esistenza di indicatori utili a verificare la ","Principio di revisione ISA 570"]
[null,"sostenibilità dei debiti e le prospettive di continuità aziendale almeno ","Segnali di crisi art. 3 co. 4 D.Lgs. 14/2019"]
[null,"per i dodici mesi successivi e rilevare i segnali di crisi."]
[]
[null,null,"Fonti normative"]
[null,"TEST 3 (cliccare qui per accedere al test)","Art. 3, comma 3, lett. c), D.Lgs. 14/2019"]
[null,"Questionario per verificare l'esistenza di indicatori utili a ricavare le ","Lista di controllo particolareggiata e Test pratico (documento allegato al decreto dirigenziale direttore generale degli affari interni 28/09/2021)"]
[null,"informazioni necessarie a utilizzare la lista di controllo particolareggiata "]
[null,"e a effettuare il test pratico per la verifica della ragionevole perseguibilità del risanamento."]
[]
[]
[]
[null,"Vai inizio pagina"]

{"sheet":"ANAGRAFICA","index":4,"n_rows":17,"n_cols":5,"rows_kept":17,"cut":false,"hidden":false,"merged":[[5,1,5,2],[7,1,7,2],[9,1,9,2],[2,1,2,2],[11,1,11,2]]}
[]
[]
[null,"ANAGRAFICA AZIENDA",null,null,"Indietro"]
[]
[null,null,null,{"$f":"+IF(D6=0,\"Errore: inserire Ragione sociale\",\"\")","v":"Errore: inserire Ragione sociale"}]
[null,"RAGIONE SOCIALE"]
[]
[null,"Sede sociale"]
[]
[null,"Attività svolta"]
[]
[null,"Codice fiscale/Partita I.V.A."]
[]
[null,null,"Codice"]
[null,"REGIME CONTABILE",null,{"$f":"+IF(C15=4,\"Regime di contabilità ordinaria con bilancio\",IF(C15=5,\"Regime di contabilità semplificata o forfettaria senza bilancio\",\"ERRORE: Inserire codice 4 o 5\"))","v":"ERRORE: Inserire codice 4 o 5"}]
[null,"Codice 4 = Regime contabile ordinario con bilancio"]
[null,"Codice 5 = Regime contabile Semplificato/Forfettario"]

{"sheet":"TEST 1","index":5,"n_rows":48,"n_cols":6,"rows_kept":48,"cut":false,"hidden":false,"merged":[[31,2,31,4],[11,2,11,4],[9,5,10,5],[7,2,7,3],[9,1,10,1],[9,2,10,2],[9,3,10,3],[9,4,10,4],[8,2,8,4]]}
[]
[null,{"$f":"+ANAGRAFICA!D6","v":0}]
[null,"TEST 1","Indietro"]
[null,"Questionario per misurare l'adeguatezza degli strumenti atti a rilevare "]
[null,"eventuali squilibri di carattere patrimoniale o economico-finanziario "]
[null,"rapportati alle specifiche caratteristiche dell'impresa e dell'attività "]
[null,"imprenditoriale svolta.",null,null,{"$f":"+IF(E8=0,\"Inserire data gg/mm/aaaa\",\"\")","v":"Inserire data gg/mm/aaaa"}]
[null,null,"Situazione al"]
[null,null,"Codice: 1=SI  2=NO  3=Quesito escluso"]
[null,"Quesiti","Codice","Esito","Azioni da intraprendere","Note"]
[]
["Sez. 1","IMPRESE IN CONTABILITA' ORDINARIA CON BILANCIO",{"$f":"+IF(ANAGRAFICA!$C$15=5,\"Sezione esclusa per diverso regime contabile impostato in ANAGRAFICA\",IF(ANAGRAFICA!$C$15=0,\"ATTENZIONE: inserire codice regime contabile in ANAGRAFICA\",\"\"))","v":"ATTENZIONE: inserire codice regime contabile in ANAGRAFICA"}]
[null,"ASPETTI  GENERALI"]
[1,"L'impresa elabora la contabilità, o almeno parte di essa, all'interno della propria sede?",null,{"$f":"IF(ANAGRAFICA!$C$15=5,\"Sezione esclusa\",IF(C14=1,\"SI\",IF(C14=2,\"NO\",IF(C14=3,\"Escluso\",IF(C14=0,\"Inserire codice\",\"Errore\")))))","v":"Inserire codice"},{"$f":"IF(C14=1,\"Adeguato\",IF(C14=2,\"Adeguare il sistema informativo contabile\",IF(C14=3,\"Quesito escluso\",\"\")))","v":""}]
[2,"Viene effettuata una riclassificazione dei bilanci storici per una approfondita analisi degli equlibri patrimoniali-economici-finanziari?",null,{"$f":"IF(ANAGRAFICA!$C$15=5,\"Sezione esclusa\",IF(C15=1,\"SI\",IF(C15=2,\"NO\",IF(C15=3,\"Escluso\",IF(C15=0,\"Inserire codice\",\"Errore\")))))","v":"Inserire codice"},{"$f":"IF(C15=1,\"Adeguato\",IF(C15=2,\"Adeguare il sistema informativo contabile\",IF(C15=3,\"Quesito escluso\",\"\")))","v":""}]
[3,"Periodicamente viene elaborata una situazione contabile con le rettifiche di competenza e assestamenti (principio contabile OIC 30) aggiornata ad almeno 120 giorni?",null,{"$f":"IF(ANAGRAFICA!$C$15=5,\"Sezione esclusa\",IF(C16=1,\"SI\",IF(C16=2,\"NO\",IF(C16=3,\"Escluso\",IF(C16=0,\"Inserire codice\",\"Errore\")))))","v":"Inserire codice"},""]
[4,"La situazione contabile periodica viene confrontata con i bilanci storici?",null,{"$f":"IF(ANAGRAFICA!$C$15=5,\"Sezione esclusa\",IF(C17=1,\"SI\",IF(C17=2,\"NO\",IF(C17=3,\"Escluso\",IF(C17=0,\"Inserire codice\",\"Errore\")))))","v":"Inserire codice"},""]
[5,"Vengono elaborati dei bilanci previsionali?",null,{"$f":"IF(ANAGRAFICA!$C$15=5,\"Sezione esclusa\",IF(C18=1,\"SI\",IF(C18=2,\"NO\",IF(C18=3,\"Escluso\",IF(C18=0,\"Inserire codice\",\"Errore\")))))","v":"Inserire codice"},""]
[null,"VERIFICA DELL'EQUILIBRIO PATRIMONIALE",null,null,""]
[6,"Nei bilanci storici viene valutato il trend del Patrimonio Netto?",null,{"$f":"IF(ANAGRAFICA!$C$15=5,\"Sezione esclusa\",IF(C20=1,\"SI\",IF(C20=2,\"NO\",IF(C20=3,\"Escluso\",IF(C20=0,\"Inserire codice\",\"Errore\")))))","v":"Inserire codice"},""]
[7,"Nella situazione contabile periodica viene stimato il Patrimonio Netto al termine dell'esercizio?",null,{"$f":"IF(ANAGRAFICA!$C$15=5,\"Sezione esclusa\",IF(C21=1,\"SI\",IF(C21=2,\"NO\",IF(C21=3,\"Escluso\",IF(C21=0,\"Inserire codice\",\"Errore\")))))","v":"Inserire codice"},""]
[8,"Viene stimato l'andamento del Patrimonio Netto previsionale futuro?",null,{"$f":"IF(ANAGRAFICA!$C$15=5,\"Sezione esclusa\",IF(C22=1,\"SI\",IF(C22=2,\"NO\",IF(C22=3,\"Escluso\",IF(C22=0,\"Inserire codice\",\"Errore\")))))","v":"Inserire codice"},""]
[null,"VERIFICA DELL'EQUILIBRIO ECONOMICO-FINANZIARIO",null,null,""]
[9,"Vengono analizzati i trend storici dei margini economici (EBIT, EBITDA, Reddito netto)?",null,{"$f":"IF(ANAGRAFICA!$C$15=5,\"Sezione esclusa\",IF(C24=1,\"SI\",IF(C24=2,\"NO\",IF(C24=3,\"Escluso\",IF(C24=0,\"Inserire codice\",\"Errore\")))))","v":"Inserire codice"},""]
[10,"Dalla situazione contabile periodica risultano i margini economici e viene effettuato il confronto con i dati storici per valutarne il trend?",null,{"$f":"IF(ANAGRAFICA!$C$15=5,\"Sezione esclusa\",IF(C25=1,\"SI\",IF(C25=2,\"NO\",IF(C25=3,\"Escluso\",IF(C25=0,\"Inserire codice\",\"Errore\")))))","v":"Inserire codice"},""]
[11,"Viene calcolato il margine di contribuzione generale e/o per prodotto?",null,{"$f":"IF(ANAGRAFICA!$C$15=5,\"Sezione esclusa\",IF(C26=1,\"SI\",IF(C26=2,\"NO\",IF(C26=3,\"Escluso\",IF(C26=0,\"Inserire codice\",\"Errore\")))))","v":"Inserire codice"},""]
[12,"Esiste un sistema di contabilità analitica per stimare i margini economici per prodotto?",null,{"$f":"IF(ANAGRAFICA!$C$15=5,\"Sezione esclusa\",IF(C27=1,\"SI\",IF(C27=2,\"NO\",IF(C27=3,\"Escluso\",IF(C27=0,\"Inserire codice\",\"Errore\")))))","v":"Inserire codice"},""]
[13,"Vengono analizzati i trend storici dei margini finanziari (Margine di struttura, Capitale circolante netto, Margine di tesoreria)?",null,{"$f":"IF(ANAGRAFICA!$C$15=5,\"Sezione esclusa\",IF(C28=1,\"SI\",IF(C28=2,\"NO\",IF(C28=3,\"Escluso\",IF(C28=0,\"Inserire codice\",\"Errore\")))))","v":"Inserire codice"},""]
[14,"Dalla situazione contabile periodica risultano i margini finanziari e viene effettuato il confronto con i dati storici per valutarne il trend?",null,{"$f":"IF(ANAGRAFICA!$C$15=5,\"Sezione esclusa\",IF(C29=1,\"SI\",IF(C29=2,\"NO\",IF(C29=3,\"Escluso\",IF(C29=0,\"Inserire codice\",\"Errore\")))))","v":"Inserire codice"},""]
[15,"Dai bilanci storici viene elaborato il Rendiconto Finanziario dei flussi di liquidità?",null,{"$f":"IF(ANAGRAFICA!$C$15=5,\"Sezione esclusa\",IF(C30=1,\"SI\",IF(C30=2,\"NO\",IF(C30=3,\"Escluso\",IF(C30=0,\"Inserire codice\",\"Errore\")))))","v":"Inserire codice"},""]
[]
["Sez. 2","IMPRESE IN CONTABILITA' SEMPLIFICATA O FORFETTARIA",{"$f":"+IF(ANAGRAFICA!$C$15=4,\"Sezione esclusa per diverso regime contabile impostato in ANAGRAFICA\",IF(ANAGRAFICA!$C$15=0,\"ATTENZIONE: inserire codice regime contabile in ANAGRAFICA\",\"\"))","v":"ATTENZIONE: inserire codice regime contabile in ANAGRAFICA"}]
[1,"L'impresa elabora la contabilità, o almeno parte di essa, all'interno della propria sede?",null,{"$f":"IF(ANAGRAFICA!$C$15=4,\"Sezione esclusa\",IF(C33=1,\"SI\",IF(C33=2,\"NO\",IF(C33=3,\"Escluso\",IF(C33=0,\"Inserire codice\",\"Errore\")))))","v":"Inserire codice"},{"$f":"IF(C33=1,\"Adeguato\",IF(C33=2,\"Adeguare il sistema informativo contabile\",IF(C33=3,\"Quesito escluso\",\"\")))","v":""}]
[2,"Vengono analizzate le situazioni economiche degli anni precedenti?",null,{"$f":"IF(ANAGRAFICA!$C$15=4,\"Sezione esclusa\",IF(C34=1,\"SI\",IF(C34=2,\"NO\",IF(C34=3,\"Escluso\",IF(C34=0,\"Inserire codice\",\"Errore\")))))","v":"Inserire codice"},{"$f":"IF(C34=1,\"Adeguato\",IF(C34=2,\"Adeguare il sistema informativo contabile\",IF(C34=3,\"Quesito escluso\",\"\")))","v":""}]
[3,"Periodicamente viene elaborata una situazione contabile economica con le rettifiche di competenza e assestamenti (principio contabile OIC 30) aggiornata ad almeno 120 giorni?",null,{"$f":"IF(ANAGRAFICA!$C$15=4,\"Sezione esclusa\",IF(C35=1,\"SI\",IF(C35=2,\"NO\",IF(C35=3,\"Escluso\",IF(C35=0,\"Inserire codice\",\"Errore\")))))","v":"Inserire codice"},""]
[4,"Vengono analizzati i trend storici dei margini economici (EBIT, EBITDA, Reddito netto)?",null,{"$f":"IF(ANAGRAFICA!$C$15=4,\"Sezione esclusa\",IF(C36=1,\"SI\",IF(C36=2,\"NO\",IF(C36=3,\"Escluso\",IF(C36=0,\"Inserire codice\",\"Errore\")))))","v":"Inserire codice"},""]
[5,"Dalla situazione contabile periodica risultano i margini economici e viene effettuato il confronto con i dati storici per valutarne il trend?",null,{"$f":"IF(ANAGRAFICA!$C$15=4,\"Sezione esclusa\",IF(C37=1,\"SI\",IF(C37=2,\"NO\",IF(C37=3,\"Escluso\",IF(C37=0,\"Inserire codice\",\"Errore\")))))","v":"Inserire codice"},""]
[6,"Viene calcolato il margine di contribuzione generale e/o per prodotto?",null,{"$f":"IF(ANAGRAFICA!$C$15=4,\"Sezione esclusa\",IF(C38=1,\"SI\",IF(C38=2,\"NO\",IF(C38=3,\"Escluso\",IF(C38=0,\"Inserire codice\",\"Errore\")))))","v":"Inserire codice"},""]
[7,"Esiste un sistema di contabilità analitica per stimare i margini economici per prodotto?",null,{"$f":"IF(ANAGRAFICA!$C$15=4,\"Sezione esclusa\",IF(C39=1,\"SI\",IF(C39=2,\"NO\",IF(C39=3,\"Escluso\",IF(C39=0,\"Inserire codice\",\"Errore\")))))","v":"Inserire codice"},""]
[null,"Totale SI",{"$f":"+COUNTIF(D14:D39,\"SI\")","v":0},{"$f":"IF(C42>0,(C40/C42),0)","v":0}]
[null,"Totale NO",{"$f":"+COUNTIF(D14:D39,\"NO\")","v":0},{"$f":"IF(C42>0,(C41/C42),0)","v":0}]
[null,"Totale risposte valide",{"$f":"+C40+C41","v":0},{"$f":"SUM(D40:D41)","v":0}]
[null,"Quesiti esclusi",{"$f":"+COUNTIF(D14:D39,\"Escluso\")","v":0}]
[null,"Codici errati",{"$f":"+COUNTIF(D14:D39,\"Errore\")","v":0}]
[null,"Codici assenti",{"$f":"+COUNTIF(D14:D39,\"Inserire codice\")","v":22}]
[]
[]
[null,"Vai inizio pagina"]

{"sheet":"TEST 2","index":6,"n_rows":49,"n_cols":6,"rows_kept":49,"cut":false,"hidden":false,"merged":[[8,5,9,5],[6,2,6,3],[7,2,7,4],[8,1,9,1],[8,2,9,2],[8,3,9,3],[8,4,9,4]]}
[]
[null,{"$f":"+ANAGRAFICA!D6","v":0}]
[null,"TEST 2","Indietro"]
[null,"Questionario per verificare l'esistenza di indicatori utili a verificare la "]
[null,"sostenibilità dei debiti e le prospettive di continuità aziendale almeno "]
[null,"per i dodici mesi successivi e rilevare i segnali di crisi.",null,null,{"$f":"+IF(E7=0,\"Inserire data gg/mm/aaaa\",\"\")","v":"Inserire data gg/mm/aaaa"}]
[null,null,"Situazione al"]
[null,null,"Codice: 1=SI  2=NO  3=Quesito escluso"]
[null,"Quesiti","Codice","Esito","Azioni da intraprendere","Note"]
[]
[null,"INDICATORI DELLE PROSPETTIVE DI CONTINUITA' AZIENDALE (ISA 570)"]
[1,"L'impresa controlla il Patrimonio netto, il Capitale circolante netto, i prestiti a scadenza fissa e la correlazione fonti-impieghi?",null,{"$f":"+IF(C12=1,\"SI\",IF(C12=2,\"NO\",IF(C12=3,\"Escluso\",IF(C12=0,\"Inserire codice\",\"Errore\"))))","v":"Inserire codice"},{"$f":"+IF(C12=1,\"Adeguato\",IF(C12=2,\"Adeguare il sistema informativo contabile\",IF(C12=3,\"Quesito escluso\",\"\")))","v":""}]
[{"$f":"1+A12","v":2},"L'impresa controlla il sotegno finanziario da parte dei creditori?",null,"Inserire codice",{"$f":"+IF(C13=1,\"Adeguato\",IF(C13=2,\"Adeguare il sistema informativo contabile\",IF(C13=3,\"Quesito escluso\",\"\")))","v":""}]
[{"$f":"1+A13","v":3},"L'impresa effettua l'analisi dei bilanci storici o prospettici e il calcolo dei principali indici economici e finanziari, e del reddito operativo?",null,"Inserire codice",""]
[4,"L'impresa controlla la capacità nel pagamento dei dividendi e dei debiti a scadenza?",null,"Inserire codice",""]
[5,"L'impresa controlla il rispetto delle clausole contrattuali dei prestiti e dei fornitori?",null,"Inserire codice",""]
[6,"L'impresa controlla la possibilità futura di ricevere nuovi finanziamenti?",null,"Inserire codice",""]
[7,"L'impresa controlla l'intenzione a cessare l'attività, la perdita di personale chiave, di mercati, di clienti chiave, di contratti e fornitori importanti?",null,"Inserire codice",""]
[8,"L'impresa controlla il clima dei rapporti col personale, della scarsità nell'approvvigionamento di forniture importanti e della comparsa di concorrenti di successo?",null,"Inserire codice",""]
[9,"L'impresa controlla l'entità del capitale e il rispetto dei limiti legali e conformità alla legge, e i procedimenti legali in corso?",null,"Inserire codice",""]
[10,"L'impresa controlla l'entità dei massimali di polizze a copertura di eventi catastrofici, e le leggi o regolamenti che possono influenzare l'impresa?",null,"Inserire codice",""]
[]
[null,"INDICATORI DEI SEGNALI DI CRISI (art. 3 co. 4 D.Lgs. 14/2019)"]
[null,"L'impresa è in grado di ottenere in ogni momento le seguenti informazioni?"]
[11,"Somma delle retribuzioni complessive mensili dei dipendenti",null,{"$f":"+IF(C25=1,\"SI\",IF(C25=2,\"NO\",IF(C25=3,\"Escluso\",IF(C25=0,\"Inserire codice\",\"Errore\"))))","v":"Inserire codice"},{"$f":"+IF(C25=1,\"Adeguato\",IF(C25=2,\"Adeguare il sistema informativo contabile\",IF(C25=3,\"Quesito escluso\",\"\")))","v":""}]
[12,"Somma delle retribuzioni ai dipendenti scadute da almeno 30 giorni",null,{"$f":"+IF(C26=1,\"SI\",IF(C26=2,\"NO\",IF(C26=3,\"Escluso\",IF(C26=0,\"Inserire codice\",\"Errore\"))))","v":"Inserire codice"},{"$f":"+IF(C26=1,\"Adeguato\",IF(C26=2,\"Adeguare il sistema informativo contabile\",IF(C26=3,\"Quesito escluso\",\"\")))","v":""}]
[13,"Somma dei debiti v/fornitori scaduti da almeno 90 giorni",null,"Inserire codice",""]
[14,"Somma dei debiti v/fornitori non scaduti",null,"Inserire codice",""]
[15,"Totale esposizioni nei confronti delle banche e degli altri intermediari finanziari",null,"Inserire codice",""]
[16,"Totale esposizioni scadute da più di 60 giorni o che abbiano superato da almeno 60 giorni il limite degli affidamenti ottenuti in qualunque forma",null,"Inserire codice",""]
[null,"SOLO PER IMPRESE CON LAVORATORI SUBORDINATI E PARASUBORDINATI:"]
[17,"Totale dei contributi INPS dovuti nell'anno precedente",null,"Inserire codice",""]
[18,"Totale dei contributi INPS scaduti da oltre 90 giorni",null,"Inserire codice",""]
[null,"SOLO PER IMPRESE SENZA LAVORATORI SUBORDINATI E PARASUBORDINATI:"]
[19,"Totale dei contributi INPS scaduti da oltre 90 giorni",null,"Inserire codice",""]
[null,"PER TUTTE LE TIPOLOGIE DI IMPRESE:"]
[20,"Totale del debito per premi assicurativi INAIL scaduto da oltre 90 giorni",null,"Inserire codice",""]
[21,"Totale del debito debito I.V.A. scaduto e non versato, risultante dalla comunicazione dei dati delle liquidazioni periodiche",null,"Inserire codice",""]
[22,"Totale del volume d'affari riusltante dalla dichiarazione relativa all'anno precedente",null,"Inserire codice",""]
[23,"Totale dei crediti affidati per la riscossione, autodichiarati o definitivamente accertati, scaduti da oltre 90 giorni",null,"Inserire codice",""]
[null,"Totale SI",{"$f":"+COUNTIF(D12:D40,\"SI\")","v":0},{"$f":"IF(C43>0,(C41/C43),0)","v":0}]
[null,"Totale NO",{"$f":"+COUNTIF(D12:D40,\"NO\")","v":0},{"$f":"IF(C43>0,(C42/C43),0)","v":0}]
[null,"Totale risposte valide",{"$f":"+C41+C42","v":0},{"$f":"SUM(D41:D42)","v":0}]
[null,"Quesiti esclusi",{"$f":"+COUNTIF(D12:D40,\"Escluso\")","v":0}]
[null,"Codici errati",{"$f":"+COUNTIF(D12:D40,\"Errore\")","v":0}]
[null,"Codici assenti",{"$f":"+COUNTIF(D12:D40,\"Inserire codice\")","v":23}]
[]
[]
[null,"Vai inizio pagina"]

{"sheet":"TEST 3","index":7,"n_rows":54,"n_cols":6,"rows_kept":54,"cut":false,"hidden":false,"merged":[[8,5,9,5],[6,2,6,3],[7,2,7,4],[8,1,9,1],[8,2,9,2],[8,3,9,3],[8,4,9,4]]}
[]
[null,{"$f":"+ANAGRAFICA!D6","v":0}]
[null,"TEST 3","Indietro"]
[null,"Questionario per verificare l'esistenza di indicatori utili a ricavare le "]
[null,"informazioni necessarie a utilizzare la lista di controllo particolareggiata "]
[null,"e a effettuare il test pratico per la verifica della ragionevole perseguibilità del risanamento.",null,null,{"$f":"+IF(E7=0,\"Inserire data gg/mm/aaaa\",\"\")","v":"Inserire data gg/mm/aaaa"}]
[null,null,"Situazione al"]
[null,null,"Codice: 1=SI  2=NO  3=Quesito escluso"]
[null,"Quesiti","Codice","Esito","Azioni da intraprendere","Note"]
[]
[null,"LISTA DI CONTROLLO PARTICOLAREGGIATA"]
[null,"REQUISITO DELL'ORGANIZZAZIONE. L'impresa procede al controllo continuo dei seguenti indicatori?"]
[1,"Controllo delle risorse chiave (umane e tecniche) per la conduzione dell'attività",null,{"$f":"+IF(C13=1,\"SI\",IF(C13=2,\"NO\",IF(C13=3,\"Escluso\",IF(C13=0,\"Inserire codice\",\"Errore\"))))","v":"Inserire codice"},{"$f":"+IF(C13=1,\"Adeguato\",IF(C13=2,\"Adeguare il sistema informativo\",IF(C13=3,\"Quesito escluso\",\"\")))","v":""}]
[2,"Controllo delle competenze tecniche occorrenti per le inizative industriali che l'imprenditore intende adottare",null,{"$f":"+IF(C14=1,\"SI\",IF(C14=2,\"NO\",IF(C14=3,\"Escluso\",IF(C14=0,\"Inserire codice\",\"Errore\"))))","v":"Inserire codice"},{"$f":"+IF(C14=1,\"Adeguato\",IF(C14=2,\"Adeguare il sistema informativo\",IF(C14=3,\"Quesito escluso\",\"\")))","v":""}]
[3,"Predisposizione di un monitoraggio continuativo dell'andamento aziendale",null,{"$f":"+IF(C15=1,\"SI\",IF(C15=2,\"NO\",IF(C15=3,\"Escluso\",IF(C15=0,\"Inserire codice\",\"Errore\"))))","v":"Inserire codice"},{"$f":"+IF(C15=1,\"Adeguato\",IF(C15=2,\"Attivare il confronto con i dati di andamento del precedente esercizio, in termini di ricavi, portafogli ordini, costi e posizione finanziaria netta.\",IF(C15=3,\"Quesito escluso\",\"\")))","v":""}]
[4,"Controllo dell'andamento gestionale anche ricorrendo ad indicatori chiave (KPI) che consentono valutazioni rapide in continuo",null,"Inserire codice",{"$f":"+IF(C16=2,\"Individuare gli indicatori di produttività coerenti con il proprio modello di business ed il proprio settore di attività, e raccoglie le ulteriori informazioni per la valutazione dell'andamento tendenziale.\",IF(C16=1,\"Adeguato\",IF(C16=3,\"Quesito escluso\",\"\")))","v":""}]
[5,"Predisposizione di un piano di tesoreria a 6 mesi",null,"Inserire codice",{"$f":"+IF(C17=2,\"Predisporre un prospetto delle stime delle entrate e delle uscite finanziarie almeno a 13 settimane, il cui scostamento con l'andamento corrente dovrà essere valutato a consuntivo.\",IF(C17=1,\"Adeguato\",IF(C17=3,\"Quesito escluso\",\"\")))","v":""}]
[null,"RILEVAZIONE DELLA SITUAZIONE CONTABILE E DELL'ANDAMENTO CORRENTE. L'impresa predispone i seguenti dati contabili?"]
[6,"Situazione contabile recante le rettifiche di competenza e gli assestamenti di chiusura, nel rispetto del principio contabile OIC 30, quanto più possibile aggiornata e comunque non anteriore di oltre 120 giorni",null,"Inserire codice",{"$f":"+IF(C19=2,\"Redigere periodicamente una situazione contabile.\",IF(C19=1,\"Adeguato\",IF(C19=3,\"Quesito escluso\",\"\")))","v":""}]
[7,"Situazione debitoria completa ed affidabile",null,"Inserire codice",{"$f":"+IF(C20=1,\"Adeguato\",IF(C20=2,\"Adeguare il sistema informativo contabile\",IF(C20=3,\"Quesito escluso\",\"\")))","v":""}]
[8,"Prospetto recante l'anzianità dei crediti commerciali e le cause del ritardo di incasso tale da consentire una valutazione oggettiva dei rischi di perdite sui crediti e una stima prudente dei tempi di incasso",null,"Inserire codice",{"$f":"+IF(C21=2,\"Suddividere i crediti commerciali in relazione alla loro anzianità\",IF(C21=1,\"Adeguato\",IF(C21=3,\"Quesito escluso\",\"\")))","v":""}]
[9,"Prospetto recante le rimanenze di magazzino con i tempi di movimentazione che consenta di individuare le giacenze oggetto di lenta rotazione",null,"Inserire codice",{"$f":"+IF(C22=2,\"Isolarei le giacenze di magazzino a lenta rotazione per consentire una stima corretta degli approvvigionamenti necessari.\",IF(C22=1,\"Adeguato\",IF(C22=3,\"Quesito escluso\",\"\")))","v":""}]
[10,"Riconciliazione dei debiti risultanti dalla contabilitài con quanto risultante dal certificato unico dei debiti tributari, dalla situazione debitoria complessiva dell'Agente della Riscossione, dal certificato dei debiti contributivi e per premi assicurativi e dall'estratto della Centrale Rischi",null,"Inserire codice",{"$f":"+IF(C23=1,\"Adeguato\",IF(C23=2,\"Adeguare il sistema informativo contabile\",IF(C23=3,\"Quesito escluso\",\"\")))","v":""}]
[11,"Quantificazione dei rischi di passività potenziali, anche derivanti dalle garanzie concesse",null,"Inserire codice",{"$f":"+IF(C24=2,\"Stimare entità e momento del pagamento di eventuali passività potenziali\",IF(C24=1,\"Adeguato\",IF(C24=3,\"Quesito escluso\",\"\")))","v":""}]
[12,"Informazioni sull'andamento corrente in termini di ricavi, portafoglio ordini, costi e flussi finanziari con confronto con lo stesso periodo del precedente esercizio ",null,"Inserire codice",{"$f":"+IF(C25=1,\"Adeguato\",IF(C25=2,\"Adeguare il sistema informativo contabile\",IF(C25=3,\"Quesito escluso\",\"\")))","v":""}]
[null,"IN CASO DI PERCEZIONE DI UNO STATO DI CRISI O DI UNO SQUILIBRIO PATRIMONIALE O ECONOMICO FINANZIARIO, SI ATTUANTO LE SEGUENTI MISURE?"]
[13,"Comparazione storica degli stati patrimoniali e dei conti economici di un numero adeguato di anni",null,"Inserire codice",{"$f":"+IF(C27=1,\"Adeguato\",IF(C27=2,\"Adeguare il sistema informativo contabile\",IF(C27=3,\"Quesito escluso\",\"\")))","v":""}]
[14,"Individuazione delle strategie di intervento e delle iniziative industriali che si intendono adottare",null,"Inserire codice",{"$f":"+IF(C28=1,\"Adeguato\",IF(C28=2,\"Predisporre un piano strategico\",IF(C28=3,\"Quesito escluso\",\"\")))","v":""}]
[15,"Disponibilità delle competenze manageriali per realizzare le strategie pianificate",null,"Inserire codice",{"$f":"+IF(C29=1,\"Adeguato\",IF(C29=2,\"Adeguare la formazione\",IF(C29=3,\"Quesito escluso\",\"\")))","v":""}]
[16,"Stima dei tempi e i relativi effetti in termini di ricavi, di costi e di investimenti delle iniziative da adottare e individuazione  delle relative funzioni aziendali responsabili",null,"Inserire codice",{"$f":"+IF(C30=1,\"Adeguato\",IF(C30=2,\"Adeguare il sistema informativo\",IF(C30=3,\"Quesito escluso\",\"\")))","v":""}]
[17,"Iniziative strategiche alternative",null,"Inserire codice",{"$f":"+IF(C31=1,\"Adeguato\",IF(C31=2,\"Predisporre un piano strategico alternativo\",IF(C31=3,\"Quesito escluso\",\"\")))","v":""}]
[null,"TEST PRATICO"]
[null,"Dal sistema informativo contabile, l'impresa può ricavare le seguenti informazioni?"]
[18,"Debito scaduto",null,{"$f":"+IF(C34=1,\"SI\",IF(C34=2,\"NO\",IF(C34=3,\"Escluso\",IF(C34=0,\"Inserire codice\",\"Errore\"))))","v":"Inserire codice"},{"$f":"+IF(C34=2,\"Migliorare il sistema informativo contabile interno\",IF(C34=1,\"Adeguato\",IF(C34=3,\"Quesito escluso\",\"\")))","v":""}]
[{"$f":"+A34+1","v":19},"Debito relativo a iscrizioni a ruolo ",null,"Inserire codice",""]
[{"$f":"+A35+1","v":20},"Debito riscadenziato o oggetto di moratorie",null,"Inserire codice",""]
[21,"Linee di credito bancarie utilizzate delle quali non ci si attende il rinnovo",null,"Inserire codice",""]
[22,"Rate di mutui e finanziamenti in scadenza nei successivi 2 anni",null,"Inserire codice",""]
[23,"Investimenti relativi alle iniziative industriali che si intendono adottare",null,"Inserire codice",""]
[24,"Ammontare delle risorse ritraibili dalla dismissione di cespiti (immobili, partecipazioni, impianti e macchinario) o rami di azienda compatibili con il fabbisogno industriale",null,"Inserire codice",""]
[25,"Nuovi conferimenti e finanziamenti, anche postergati, previsti",null,"Inserire codice",""]
[26,"Stima dell'eventuale margine operativo netto negativo nel primo anno comprensivo dei componenti non ricorrenti",null,"Inserire codice",""]
[27,"Stima del Margine Operativo Lordo prospettico normalizzato annuo, prima delle componenti non ricorrenti, a regime",null,"Inserire codice",""]
[28,"Investimenti di mantenimento annui a regime",null,"Inserire codice",""]
[29,"Imposte sul reddito annue che dovranno essere assolte",null,"Inserire codice",""]
[null,"Totale SI",{"$f":"+COUNTIF(D13:D45,\"SI\")","v":0},{"$f":"IF(C48>0,(C46/C48),0)","v":0}]
[null,"Totale NO",{"$f":"+COUNTIF(D13:D45,\"NO\")","v":0},{"$f":"IF(C48>0,(C47/C48),0)","v":0}]
[null,"Totale risposte valide",{"$f":"+C46+C47","v":0},{"$f":"SUM(D46:D47)","v":0}]
[null,"Quesiti esclusi",{"$f":"+COUNTIF(D13:D45,\"Escluso\")","v":0}]
[null,"Codici errati",{"$f":"+COUNTIF(D13:D45,\"Errore\")","v":0}]
[null,"Codici assenti",{"$f":"+COUNTIF(D13:D45,\"Inserire codice\")","v":29}]
[]
[]
[null,"Vai inizio pagina"]

{"sheet":"ART 3","index":8,"n_rows":119,"n_cols":12,"rows_kept":119,"cut":false,"hidden":false,"merged":[]}
[]
[]
[]
[null,null,null,null,null,null,null,null,null,null,null,"Indietro"]
[]
[]
[]
[]
[]
[]
[]
[]
[]
[]
[]
[]
[]
[]
[]
[]
[]
[]
[]
[]
[]
[]
[]
[]
[]
[]
[]
[]
[]
[]
[]
[]
[]
[]
[]
[]
[]
[]
[]
[]
[]
[]
[]
[]
[]
[]
[]
[]
[]
[]
[]
[]
[]
[]
[]
[]
[]
[]
[]
[]
[]
[]
[]
[]
[]
[]
[]
[]
[]
[]
[]
[]
[]
[]
[]
[]
[]
[]
[]
[]
[]
[]
[]
[]
[]
[]
[]
[]
[]
[]
[]
[]
[]
[]
[]
[]
[]
[]
[]
[]
[]
[]
[]
[]
[]
[]
[]
[]
[]
[]
[]
[]
[]
[]
[null,"Vai inizio pagina"]

{"sheet":"ART 2086","index":9,"n_rows":4,"n_cols":11,"rows_kept":4,"cut":false,"hidden":false,"merged":[]}
[]
[]
[]
[null,null,null,null,null,null,null,null,null,null,"Indietro"]

{"sheet":"DATI GRAFICO","index":10,"n_rows":53,"n_cols":11,"rows_kept":53,"cut":false,"hidden":true,"merged":[]}
[]
[]
[null,"TOTALE RISPOSTE DEI 3 TEST"]
[]
[null,1,2,3,4,5,6,7,8,9,10]
[null,"SI",null,null,null,"Critico","Accettabile","Buono"]
[null,"Valore","Min","Max","Estensione","Basso","Medio","Alto",{"$f":"B6&\": \"&TEXT(B8,\"0.0%\")","v":{"$error":"#DIV/0!"}},"X","Y"]
[null,{"$f":"+CALCOLI!C27","v":{"$error":"#DIV/0!"}},0,1,180,{"$f":"(1-(360-E8)/360)/3","v":0.16666666666666666},{"$f":"(1-(360-E8)/360)/3","v":0.16666666666666666},{"$f":"(1-(360-E8)/360)/3","v":0.16666666666666666},{"$f":"(360-E8)/360","v":0.5},0.5,0.5]
[null,"AGGANCIATO CON I SI",null,null,null,null,null,null,null,{"$f":"1-(COS(RADIANS(E8)*(B8-C8)/(D8-C8))+1)/2","v":{"$error":"#DIV/0!"}},{"$f":"(SIN(RADIANS(E8)*(B8-C8)/(D8-C8))+1)/2","v":{"$error":"#DIV/0!"}}]
[]
[]
[null,"TEST 1"]
[null,1,2,3,4,5,6,7,8,9,10]
[null,"SI",null,null,null,"Critico","Accettabile","Buono"]
[null,"Valore","Min","Max","Estensione","Basso","Medio","Alto",{"$f":"B14&\": \"&TEXT(B16,\"0.0%\")","v":"SI: 00%"},"X","Y"]
[null,{"$f":"+CALCOLI!C8","v":0},0,1,180,{"$f":"(1-(360-E16)/360)/3","v":0.16666666666666666},{"$f":"(1-(360-E16)/360)/3","v":0.16666666666666666},{"$f":"(1-(360-E16)/360)/3","v":0.16666666666666666},{"$f":"(360-E16)/360","v":0.5},0.5,0.5]
[null,"AGGANCIATO CON I SI",null,null,null,null,null,null,null,{"$f":"1-(COS(RADIANS(E16)*(B16-C16)/(D16-C16))+1)/2","v":0},{"$f":"(SIN(RADIANS(E16)*(B16-C16)/(D16-C16))+1)/2","v":0.5}]
[]
[]
[null,"TEST 2"]
[null,1,2,3,4,5,6,7,8,9,10]
[null,"SI",null,null,null,"Critico","Accettabile","Buono"]
[null,"Valore","Min","Max","Estensione","Basso","Medio","Alto",{"$f":"B22&\": \"&TEXT(B24,\"0.0%\")","v":"SI: 00%"},"X","Y"]
[null,{"$f":"+CALCOLI!C15","v":0},0,1,180,{"$f":"(1-(360-E24)/360)/3","v":0.16666666666666666},{"$f":"(1-(360-E24)/360)/3","v":0.16666666666666666},{"$f":"(1-(360-E24)/360)/3","v":0.16666666666666666},{"$f":"(360-E24)/360","v":0.5},0.5,0.5]
[null,"AGGANCIATO CON I SI",null,null,null,null,null,null,null,{"$f":"1-(COS(RADIANS(E24)*(B24-C24)/(D24-C24))+1)/2","v":0},{"$f":"(SIN(RADIANS(E24)*(B24-C24)/(D24-C24))+1)/2","v":0.5}]
[]
[]
[null,"TEST 3"]
[null,1,2,3,4,5,6,7,8,9,10]
[null,"SI",null,null,null,"Critico","Accettabile","Buono"]
[null,"Valore","Min","Max","Estensione","Basso","Medio","Alto",{"$f":"B30&\": \"&TEXT(B32,\"0.0%\")","v":"SI: 00%"},"X","Y"]
[null,{"$f":"+CALCOLI!C21","v":0},0,1,180,{"$f":"(1-(360-E32)/360)/3","v":0.16666666666666666},{"$f":"(1-(360-E32)/360)/3","v":0.16666666666666666},{"$f":"(1-(360-E32)/360)/3","v":0.16666666666666666},{"$f":"(360-E32)/360","v":0.5},0.5,0.5]
[null,"AGGANCIATO CON I SI",null,null,null,null,null,null,null,{"$f":"1-(COS(RADIANS(E32)*(B32-C32)/(D32-C32))+1)/2","v":0},{"$f":"(SIN(RADIANS(E32)*(B32-C32)/(D32-C32))+1)/2","v":0.5}]
[]
[]
[null,"FARE UN GRAFICO PER TEST"]
[null,"PERCHE' BISOGNA INSERIRE LA DATA"]
[null,null,null,"Situazione al"]
[null,"TEST 1",null,{"$f":"+'TEST 1'!E8","v":"00:00:00"}]
[null,"SI",{"$f":"+CALCOLI!C8","v":0}]
[null,"NO",{"$f":"+CALCOLI!D8","v":0}]
[null,null,null,"Situazione al"]
[null,"TEST 2",null,{"$f":"+'TEST 2'!E7","v":"00:00:00"}]
[null,"SI",{"$f":"+CALCOLI!C15","v":0}]
[null,"NO",{"$f":"+CALCOLI!D15","v":0}]
[null,null,null,"Situazione al"]
[null,"TEST 3",null,{"$f":"+'TEST 3'!E7","v":"00:00:00"}]
[null,"SI",{"$f":"+CALCOLI!C21","v":0}]
[null,"NO",{"$f":"+CALCOLI!D21","v":0}]
[]
[null,"TOTALI"]
[null,"SI",{"$f":"+CALCOLI!C27","v":{"$error":"#DIV/0!"}}]
[null,"NO",{"$f":"+CALCOLI!D27","v":{"$error":"#DIV/0!"}}]

{"sheet":"REPORT","index":11,"n_rows":90,"n_cols":11,"rows_kept":90,"cut":false,"hidden":false,"merged":[[5,10,5,11],[15,14,18,17],[29,1,33,4],[4,1,4,8],[5,1,5,8],[17,4,17,5],[21,1,25,4],[26,6,26,7],[42,6,42,7],[20,3,20,4],[28,3,28,4],[36,3,36,4],[2,1,2,8],[37,1,41,4],[34,6,34,7]]}
[]
[null,{"$f":"+ANAGRAFICA!D6","v":0}]
[null,"REPORT",null,null,null,null,null,null,null,null,"Indietro"]
[]
[null,"ADEGUATEZZA DELLE MISURE E DEGLI ASSETTI IN FUNZIONE "]
[null,"DELLA RILEVAZIONE TEMPESTIVA DELLA CRISI D'IMPRESA",null,null,null,null,null,null,null,null,"Visualizza calcoli"]
[]
[]
[]
[]
[]
[]
[]
[]
[]
[]
[]
[null,null,null,null,{"$f":"+CALCOLI!C27","v":{"$error":"#DIV/0!"}}]
[]
[]
[null,"TEST 1",null,{"$f":"+CALCOLI!C5","v":"00:00:00"}]
[null,"Adeguatezza degli strumenti per rilevare eventuali squilibri di carattere patrimoniale o economico-finanziario"]
[]
[]
[]
[]
[null,null,null,null,null,null,{"$f":"+CALCOLI!C8","v":0}]
[]
[null,"TEST 2",null,{"$f":"+CALCOLI!C12","v":"00:00:00"}]
[null,"Adeguatezza degli indicatori per verificare la sostenibilità dei debiti e le prospettive di continuità aziendale almeno per i dodici mesi successivi e rilevare i segnali di crisi"]
[]
[]
[]
[]
[null,null,null,null,null,null,{"$f":"+CALCOLI!C15","v":0}]
[]
[null,"TEST 3",null,{"$f":"+CALCOLI!C18","v":"00:00:00"}]
[null,"Adeguatezza degli indicatori per ricavare le informazioni necessarie a utilizzare la lista di controllo particolareggiata e a effettuare il test pratico per la verifica della ragionevole perseguibilità del risanamento."]
[]
[]
[]
[]
[null,null,null,null,null,null,{"$f":"+CALCOLI!C21","v":0}]
[]
[]
[]
[]
[]
[]
[]
[]
[]
[]
[]
[]
[]
[]
[]
[]
[]
[]
[]
[]
[]
[]
[]
[]
[]
[]
[]
[]
[]
[]
[]
[]
[]
[]
[]
[]
[]
[]
[]
[]
[]
[]
[]
[]
[]
[]
[null,null,null,null,null,null,null,null,null,null,"Vai inizio pagina"]

{"sheet":"CALCOLI","index":12,"n_rows":53,"n_cols":7,"rows_kept":53,"cut":false,"hidden":false,"merged":[[24,1,26,1],[4,2,4,3],[11,2,11,3],[17,2,17,3]]}
[]
[null,{"$f":"+ANAGRAFICA!D6","v":0},null,null,null,null,"Indietro"]
[null,"RISULTATI DEI TEST"]
[]
[null,"Situazione al ",{"$f":"+'TEST 1'!E8","v":"00:00:00"}]
[null,"TEST 1","SI","NO","Totali","Esclusi"]
[null,"Adeguatezza degli strumenti per rilevare eventuali squilibri di ",{"$f":"+'TEST 1'!C40","v":0},{"$f":"+'TEST 1'!C41","v":0},{"$f":"+C7+D7","v":0},{"$f":"+'TEST 1'!C43","v":0}]
[null,"carattere patrimoniale o economico-finanziario,  rapportati alle ",{"$f":"+'TEST 1'!D40","v":0},{"$f":"+'TEST 1'!D41","v":0},{"$f":"+C8+D8","v":0}]
[null,"specifiche caratteristiche dell'impresa e dell'attività imprenditoriale "]
[null,"svolta."]
[]
[null,"Situazione al ",{"$f":"+'TEST 2'!E7","v":"00:00:00"}]
[null,"TEST 2","SI","NO","Totali","Esclusi"]
[null,"Adeguatezza degli indicatori per verificare la sostenibilità dei debiti ",{"$f":"+'TEST 2'!C41","v":0},{"$f":"+'TEST 2'!C42","v":0},{"$f":"+C14+D14","v":0},{"$f":"+'TEST 2'!C44","v":0}]
[null,"e le prospettive di continuità aziendale almeno  per i dodici mesi ",{"$f":"+'TEST 2'!D41","v":0},{"$f":"+'TEST 2'!D42","v":0},{"$f":"+C15+D15","v":0}]
[null,"successivi e rilevare i segnali di crisi."]
[]
[null,"Situazione al ",{"$f":"+'TEST 3'!E7","v":"00:00:00"}]
[null,"TEST 3","SI","NO","Totali","Esclusi"]
[null,"Adeguatezza degli indicatori per ricavare le informazioni necessarie ",{"$f":"+'TEST 3'!C46","v":0},{"$f":"+'TEST 3'!C47","v":0},{"$f":"+C20+D20","v":0},{"$f":"+'TEST 3'!C49","v":0}]
[null,"a utilizzare la lista di controllo particolareggiata  e a effettuare ",{"$f":"+'TEST 3'!D46","v":0},{"$f":"+'TEST 3'!D47","v":0},{"$f":"+C21+D21","v":0}]
[null,"il test pratico per la verifica della ragionevole perseguibilità del "]
[null,"risanamento."]
[]
[null,"TOTALI TEST","SI","NO","Totali","Esclusi"]
[null,null,{"$f":"+C7+C14+C20","v":0},{"$f":"+D7+D14+D20","v":0},{"$f":"+C26+D26","v":0},{"$f":"+F7+F14+F20","v":0}]
[null,null,{"$f":"+C26/E26","v":{"$error":"#DIV/0!"}},{"$f":"+D26/E26","v":{"$error":"#DIV/0!"}},{"$f":"+C27+D27","v":{"$error":"#DIV/0!"}}]
[]
[]
[]
[]
[]
[]
[]
[]
[]
[]
[]
[]
[]
[]
[]
[]
[]
[]
[]
[]
[]
[]
[]
[]
[]
[null,"Vai inizio pagina"]